{"text_format":"3","workbook":"xlsx","n_sheets":2,"sheets":["Gesamt","Berechnungen"],"read":"whole","date_system":"1900"}

{"sheet":"Gesamt","index":0,"n_rows":36,"n_cols":6,"rows_kept":36,"merged":[[0,0,0,6],[1,0,1,2],[1,3,1,6],[2,3,2,6],[3,0,3,6],[4,0,4,6],[5,0,5,6],[6,0,6,6],[7,1,7,2],[7,4,8,6],[8,1,8,2],[9,0,9,6]]}
["Schätzung der Probenahmepräzision"]
["für die Bestimmung von"]
["bei der Probenahme aus"]
["basierend auf der \"Duplicate method\" in:"]
["Eurachem/EUROLAB/ CITAC/Nordtest/AMC Guide: Measurement uncertainty arising from sampling: "]
["a guide to methods and approaches. www.eurachem.org"]
[]
["berechnet von:"]
["Datum:",null,null,"Unterschrift:"]
[]
[]
[null,"PN-Zielobjekt","Probe 1 /Ergebnis 1","Probe 1 /Ergebnis 2","Probe 2 /Ergebnis 1","Probe 2 /Ergebnis 2"]
[1,"PN-Stelle 1"]
[2,"PN-Stelle 2"]
[3,"PN-Stelle 3"]
[4,"PN-Stelle 4"]
[5,"PN-Stelle 5"]
[6,"PN-Stelle 6"]
[7,"PN-Stelle 7"]
[8,"PN-Stelle 8"]
[9,"PN-Stelle 9"]
[10,"PN-Stelle 10"]
[]
[null,"Standardabweichung, gesamt:",null,null,{"$f":"IF(Berechnungen!B13>7,Berechnungen!C25,\"zu wenig Daten\")","v":"zu wenig Daten"},{"$f":"IF(Berechnungen!B13>7,Berechnungen!D25,\"zu wenig Daten\")","v":"zu wenig Daten"}]
[null,"Standardabweichungen zwischen PN-Stellen:",null,null,{"$f":"IF(Berechnungen!B13>7,Berechnungen!C23,\"zu wenig Daten\")","v":"zu wenig Daten"},{"$f":"IF(Berechnungen!B13>7,Berechnungen!D23,\"zu wenig Daten\")","v":"zu wenig Daten"}]
[null,"Wiederholstandardabweichung Analytik:",null,null,{"$f":"IF(Berechnungen!B13>7,Berechnungen!C21,\"zu wenig Daten\")","v":"zu wenig Daten"},{"$f":"IF(Berechnungen!B13>7,Berechnungen!D21,\"zu wenig Daten\")","v":"zu wenig Daten"}]
[null,"Standardabweichung Probenahme:",null,null,{"$f":"IF(Berechnungen!B13>7,Berechnungen!C22,\"zu wenig Daten\")","v":"zu wenig Daten"},{"$f":"IF(Berechnungen!B13>7,Berechnungen!D22,\"zu wenig Daten\")","v":"zu wenig Daten"}]
[]
[null,"Erweiterte Probenahmeunsicherheit (ohne systematische Abweichung; k=2):",{"$nulls":3},{"$f":"IF(Berechnungen!B13>7,2*F27,\"zu wenig Daten\")","v":"zu wenig Daten"}]
[]
[]
[]
[]
[]
[null,"© 2020, Dr. Michael Koch, Institut für Siedlungswasserbau, Univ. Stuttgart, www.aqsbw.de"]
[null,"Die Benutzung dieses EXCEL-Blatts ist frei, solange der Copyright-Vermerk nicht entfernt wird."]

{"sheet":"Berechnungen","index":1,"n_rows":25,"n_cols":30,"rows_kept":25,"merged":[[16,0,16,1],[17,0,17,1],[18,0,18,1],[20,0,20,1],[21,0,21,1],[22,0,22,1],[23,0,23,1]]}
["Z=Ziel; P=Probe; W=Wert"]
["Mittelwert Z1 / P1",{"$f":"IF(Gesamt!C13,AVERAGE(Gesamt!C13:D13),\"\")","v":""},"Mittelwert Z1 / P2",{"$f":"IF(Gesamt!E13,AVERAGE(Gesamt!E13:F13),\"\")","v":""},"Mittelwert Z1",{"$f":"IF(Gesamt!C13,AVERAGE(B2,D2),\"\")","v":""},"Gesamtmittelwert",{"$f":"AVERAGE(Gesamt!C13:F22)","v":{"$error":"#DIV/0!"}},"Abweichungsquadrat Z1",{"$f":"IF(Gesamt!C13,(Berechnungen!F2-Berechnungen!$H$2)^2,\"\")","v":""},"Abweichungsquadrat Z1 / P1",{"$f":"IF(Gesamt!C13,(B2-F2)^2,\"\")","v":""},"Abweichungsquadrat Z1 / P2",{"$f":"IF(Gesamt!C13,(D2-F2)^2,\"\")","v":""},"Abweichungsquadrat Z1 / P1 / W1",{"$f":"IF(Gesamt!C13,(Gesamt!C13-Berechnungen!B2)^2,\"\")","v":""},"Abweichungsquadrat Z1 / P1 / W2",{"$f":"IF(Gesamt!D13,(Gesamt!D13-Berechnungen!B2)^2,\"\")","v":""},"Abweichungsquadrat Z1 / P2 / W1",{"$f":"IF(Gesamt!E13,(Gesamt!E13-Berechnungen!D2)^2,\"\")","v":""},"Abweichungsquadrat Z1 / P2 / W2",{"$f":"IF(Gesamt!F13,(Gesamt!F13-Berechnungen!D2)^2,\"\")","v":""},"Abweichungsquadrat_ges Z1 / P1 / W1",{"$f":"IF(Gesamt!C13,(Gesamt!C13-Berechnungen!$H$2)^2,\"\")","v":""},"Abweichungsquadrat_ges Z1 / P1 / W2",{"$f":"IF(Gesamt!D13,(Gesamt!D13-Berechnungen!$H$2)^2,\"\")","v":""},"Abweichungsquadrat_ges Z1 / P2 / W1",{"$f":"IF(Gesamt!E13,(Gesamt!E13-Berechnungen!$H$2)^2,\"\")","v":""},"Abweichungsquadrat_ges Z1 / P2 / W2",{"$f":"IF(Gesamt!F13,(Gesamt!F13-Berechnungen!$H$2)^2,\"\")","v":""}]
["Mittelwert Z2 / P1",{"$f":"IF(Gesamt!C14,AVERAGE(Gesamt!C14:D14),\"\")","v":""},"Mittelwert Z2 / P2",{"$f":"IF(Gesamt!E14,AVERAGE(Gesamt!E14:F14),\"\")","v":""},"Mittelwert Z2",{"$f":"IF(Gesamt!C14,AVERAGE(B3,D3),\"\")","v":""},null,null,"Abweichungsquadrat Z2",{"$f":"IF(Gesamt!C14,(Berechnungen!F3-Berechnungen!$H$2)^2,\"\")","v":""},"Abweichungsquadrat Z2 / P1",{"$f":"IF(Gesamt!C14,(B3-F3)^2,\"\")","v":""},"Abweichungsquadrat Z1 / P2",{"$f":"IF(Gesamt!C14,(D3-F3)^2,\"\")","v":""},"Abweichungsquadrat Z2 / P1 / W1",{"$f":"IF(Gesamt!C14,(Gesamt!C14-Berechnungen!B3)^2,\"\")","v":""},"Abweichungsquadrat Z2 / P1 / W2",{"$f":"IF(Gesamt!D14,(Gesamt!D14-Berechnungen!B3)^2,\"\")","v":""},"Abweichungsquadrat Z2 / P2 / W1",{"$f":"IF(Gesamt!E14,(Gesamt!E14-Berechnungen!D3)^2,\"\")","v":""},"Abweichungsquadrat Z2 / P2 / W2",{"$f":"IF(Gesamt!F14,(Gesamt!F14-Berechnungen!D3)^2,\"\")","v":""},"Abweichungsquadrat_ges Z2 / P1 / W1",{"$f":"IF(Gesamt!C14,(Gesamt!C14-Berechnungen!$H$2)^2,\"\")","v":""},"Abweichungsquadrat_ges Z2 / P1 / W2",{"$f":"IF(Gesamt!D14,(Gesamt!D14-Berechnungen!$H$2)^2,\"\")","v":""},"Abweichungsquadrat_ges Z2 / P2 / W1",{"$f":"IF(Gesamt!E14,(Gesamt!E14-Berechnungen!$H$2)^2,\"\")","v":""},"Abweichungsquadrat_ges Z2 / P2 / W2",{"$f":"IF(Gesamt!F14,(Gesamt!F14-Berechnungen!$H$2)^2,\"\")","v":""}]
["Mittelwert Z3 / P1",{"$f":"IF(Gesamt!C15,AVERAGE(Gesamt!C15:D15),\"\")","v":""},"Mittelwert Z3 / P2",{"$f":"IF(Gesamt!E15,AVERAGE(Gesamt!E15:F15),\"\")","v":""},"Mittelwert Z3",{"$f":"IF(Gesamt!C15,AVERAGE(B4,D4),\"\")","v":""},null,null,"Abweichungsquadrat Z3",{"$f":"IF(Gesamt!C15,(Berechnungen!F4-Berechnungen!$H$2)^2,\"\")","v":""},"Abweichungsquadrat Z3 / P1",{"$f":"IF(Gesamt!C15,(B4-F4)^2,\"\")","v":""},"Abweichungsquadrat Z1 / P2",{"$f":"IF(Gesamt!C15,(D4-F4)^2,\"\")","v":""},"Abweichungsquadrat Z3 / P1 / W1",{"$f":"IF(Gesamt!C15,(Gesamt!C15-Berechnungen!B4)^2,\"\")","v":""},"Abweichungsquadrat Z3 / P1 / W2",{"$f":"IF(Gesamt!D15,(Gesamt!D15-Berechnungen!B4)^2,\"\")","v":""},"Abweichungsquadrat Z3 / P2 / W1",{"$f":"IF(Gesamt!E15,(Gesamt!E15-Berechnungen!D4)^2,\"\")","v":""},"Abweichungsquadrat Z3 / P2 / W2",{"$f":"IF(Gesamt!F15,(Gesamt!F15-Berechnungen!D4)^2,\"\")","v":""},"Abweichungsquadrat_ges Z3 / P1 / W1",{"$f":"IF(Gesamt!C15,(Gesamt!C15-Berechnungen!$H$2)^2,\"\")","v":""},"Abweichungsquadrat_ges Z3 / P1 / W2",{"$f":"IF(Gesamt!D15,(Gesamt!D15-Berechnungen!$H$2)^2,\"\")","v":""},"Abweichungsquadrat_ges Z3 / P2 / W1",{"$f":"IF(Gesamt!E15,(Gesamt!E15-Berechnungen!$H$2)^2,\"\")","v":""},"Abweichungsquadrat_ges Z3 / P2 / W2",{"$f":"IF(Gesamt!F15,(Gesamt!F15-Berechnungen!$H$2)^2,\"\")","v":""}]
["Mittelwert Z4 / P1",{"$f":"IF(Gesamt!C16,AVERAGE(Gesamt!C16:D16),\"\")","v":""},"Mittelwert Z4 / P2",{"$f":"IF(Gesamt!E16,AVERAGE(Gesamt!E16:F16),\"\")","v":""},"Mittelwert Z4",{"$f":"IF(Gesamt!C16,AVERAGE(B5,D5),\"\")","v":""},null,null,"Abweichungsquadrat Z4",{"$f":"IF(Gesamt!C16,(Berechnungen!F5-Berechnungen!$H$2)^2,\"\")","v":""},"Abweichungsquadrat Z4 / P1",{"$f":"IF(Gesamt!C16,(B5-F5)^2,\"\")","v":""},"Abweichungsquadrat Z1 / P2",{"$f":"IF(Gesamt!C16,(D5-F5)^2,\"\")","v":""},"Abweichungsquadrat Z4 / P1 / W1",{"$f":"IF(Gesamt!C16,(Gesamt!C16-Berechnungen!B5)^2,\"\")","v":""},"Abweichungsquadrat Z4 / P1 / W2",{"$f":"IF(Gesamt!D16,(Gesamt!D16-Berechnungen!B5)^2,\"\")","v":""},"Abweichungsquadrat Z4 / P2 / W1",{"$f":"IF(Gesamt!E16,(Gesamt!E16-Berechnungen!D5)^2,\"\")","v":""},"Abweichungsquadrat Z4 / P2 / W2",{"$f":"IF(Gesamt!F16,(Gesamt!F16-Berechnungen!D5)^2,\"\")","v":""},"Abweichungsquadrat_ges Z4 / P1 / W1",{"$f":"IF(Gesamt!C16,(Gesamt!C16-Berechnungen!$H$2)^2,\"\")","v":""},"Abweichungsquadrat_ges Z4 / P1 / W2",{"$f":"IF(Gesamt!D16,(Gesamt!D16-Berechnungen!$H$2)^2,\"\")","v":""},"Abweichungsquadrat_ges Z4 / P2 / W1",{"$f":"IF(Gesamt!E16,(Gesamt!E16-Berechnungen!$H$2)^2,\"\")","v":""},"Abweichungsquadrat_ges Z4 / P2 / W2",{"$f":"IF(Gesamt!F16,(Gesamt!F16-Berechnungen!$H$2)^2,\"\")","v":""}]
["Mittelwert Z5 / P1",{"$f":"IF(Gesamt!C17,AVERAGE(Gesamt!C17:D17),\"\")","v":""},"Mittelwert Z5 / P2",{"$f":"IF(Gesamt!E17,AVERAGE(Gesamt!E17:F17),\"\")","v":""},"Mittelwert Z5",{"$f":"IF(Gesamt!C17,AVERAGE(B6,D6),\"\")","v":""},null,null,"Abweichungsquadrat Z5",{"$f":"IF(Gesamt!C17,(Berechnungen!F6-Berechnungen!$H$2)^2,\"\")","v":""},"Abweichungsquadrat Z5 / P1",{"$f":"IF(Gesamt!C17,(B6-F6)^2,\"\")","v":""},"Abweichungsquadrat Z1 / P2",{"$f":"IF(Gesamt!C17,(D6-F6)^2,\"\")","v":""},"Abweichungsquadrat Z5 / P1 / W1",{"$f":"IF(Gesamt!C17,(Gesamt!C17-Berechnungen!B6)^2,\"\")","v":""},"Abweichungsquadrat Z5 / P1 / W2",{"$f":"IF(Gesamt!D17,(Gesamt!D17-Berechnungen!B6)^2,\"\")","v":""},"Abweichungsquadrat Z5 / P2 / W1",{"$f":"IF(Gesamt!E17,(Gesamt!E17-Berechnungen!D6)^2,\"\")","v":""},"Abweichungsquadrat Z5 / P2 / W2",{"$f":"IF(Gesamt!F17,(Gesamt!F17-Berechnungen!D6)^2,\"\")","v":""},"Abweichungsquadrat_ges Z5 / P1 / W1",{"$f":"IF(Gesamt!C17,(Gesamt!C17-Berechnungen!$H$2)^2,\"\")","v":""},"Abweichungsquadrat_ges Z5 / P1 / W2",{"$f":"IF(Gesamt!D17,(Gesamt!D17-Berechnungen!$H$2)^2,\"\")","v":""},"Abweichungsquadrat_ges Z5 / P2 / W1",{"$f":"IF(Gesamt!E17,(Gesamt!E17-Berechnungen!$H$2)^2,\"\")","v":""},"Abweichungsquadrat_ges Z5 / P2 / W2",{"$f":"IF(Gesamt!F17,(Gesamt!F17-Berechnungen!$H$2)^2,\"\")","v":""}]
["Mittelwert Z6 / P1",{"$f":"IF(Gesamt!C18,AVERAGE(Gesamt!C18:D18),\"\")","v":""},"Mittelwert Z6 / P2",{"$f":"IF(Gesamt!E18,AVERAGE(Gesamt!E18:F18),\"\")","v":""},"Mittelwert Z6",{"$f":"IF(Gesamt!C18,AVERAGE(B7,D7),\"\")","v":""},null,null,"Abweichungsquadrat Z6",{"$f":"IF(Gesamt!C18,(Berechnungen!F7-Berechnungen!$H$2)^2,\"\")","v":""},"Abweichungsquadrat Z6 / P1",{"$f":"IF(Gesamt!C18,(B7-F7)^2,\"\")","v":""},"Abweichungsquadrat Z1 / P2",{"$f":"IF(Gesamt!C18,(D7-F7)^2,\"\")","v":""},"Abweichungsquadrat Z6 / P1 / W1",{"$f":"IF(Gesamt!C18,(Gesamt!C18-Berechnungen!B7)^2,\"\")","v":""},"Abweichungsquadrat Z6 / P1 / W2",{"$f":"IF(Gesamt!D18,(Gesamt!D18-Berechnungen!B7)^2,\"\")","v":""},"Abweichungsquadrat Z6 / P2 / W1",{"$f":"IF(Gesamt!E18,(Gesamt!E18-Berechnungen!D7)^2,\"\")","v":""},"Abweichungsquadrat Z6 / P2 / W2",{"$f":"IF(Gesamt!F18,(Gesamt!F18-Berechnungen!D7)^2,\"\")","v":""},"Abweichungsquadrat_ges Z6 / P1 / W1",{"$f":"IF(Gesamt!C18,(Gesamt!C18-Berechnungen!$H$2)^2,\"\")","v":""},"Abweichungsquadrat_ges Z6 / P1 / W2",{"$f":"IF(Gesamt!D18,(Gesamt!D18-Berechnungen!$H$2)^2,\"\")","v":""},"Abweichungsquadrat_ges Z6 / P2 / W1",{"$f":"IF(Gesamt!E18,(Gesamt!E18-Berechnungen!$H$2)^2,\"\")","v":""},"Abweichungsquadrat_ges Z6 / P2 / W2",{"$f":"IF(Gesamt!F18,(Gesamt!F18-Berechnungen!$H$2)^2,\"\")","v":""}]
["Mittelwert Z7 / P1",{"$f":"IF(Gesamt!C19,AVERAGE(Gesamt!C19:D19),\"\")","v":""},"Mittelwert Z7 / P2",{"$f":"IF(Gesamt!E19,AVERAGE(Gesamt!E19:F19),\"\")","v":""},"Mittelwert Z7",{"$f":"IF(Gesamt!C19,AVERAGE(B8,D8),\"\")","v":""},null,null,"Abweichungsquadrat Z7",{"$f":"IF(Gesamt!C19,(Berechnungen!F8-Berechnungen!$H$2)^2,\"\")","v":""},"Abweichungsquadrat Z7 / P1",{"$f":"IF(Gesamt!C19,(B8-F8)^2,\"\")","v":""},"Abweichungsquadrat Z1 / P2",{"$f":"IF(Gesamt!C19,(D8-F8)^2,\"\")","v":""},"Abweichungsquadrat Z7 / P1 / W1",{"$f":"IF(Gesamt!C19,(Gesamt!C19-Berechnungen!B8)^2,\"\")","v":""},"Abweichungsquadrat Z7 / P1 / W2",{"$f":"IF(Gesamt!D19,(Gesamt!D19-Berechnungen!B8)^2,\"\")","v":""},"Abweichungsquadrat Z7 / P2 / W1",{"$f":"IF(Gesamt!E19,(Gesamt!E19-Berechnungen!D8)^2,\"\")","v":""},"Abweichungsquadrat Z7 / P2 / W2",{"$f":"IF(Gesamt!F19,(Gesamt!F19-Berechnungen!D8)^2,\"\")","v":""},"Abweichungsquadrat_ges Z7 / P1 / W1",{"$f":"IF(Gesamt!C19,(Gesamt!C19-Berechnungen!$H$2)^2,\"\")","v":""},"Abweichungsquadrat_ges Z7 / P1 / W2",{"$f":"IF(Gesamt!D19,(Gesamt!D19-Berechnungen!$H$2)^2,\"\")","v":""},"Abweichungsquadrat_ges Z7 / P2 / W1",{"$f":"IF(Gesamt!E19,(Gesamt!E19-Berechnungen!$H$2)^2,\"\")","v":""},"Abweichungsquadrat_ges Z7 / P2 / W2",{"$f":"IF(Gesamt!F19,(Gesamt!F19-Berechnungen!$H$2)^2,\"\")","v":""}]
["Mittelwert Z8 / P1",{"$f":"IF(Gesamt!C20,AVERAGE(Gesamt!C20:D20),\"\")","v":""},"Mittelwert Z8 / P2",{"$f":"IF(Gesamt!E20,AVERAGE(Gesamt!E20:F20),\"\")","v":""},"Mittelwert Z8",{"$f":"IF(Gesamt!C20,AVERAGE(B9,D9),\"\")","v":""},null,null,"Abweichungsquadrat Z8",{"$f":"IF(Gesamt!C20,(Berechnungen!F9-Berechnungen!$H$2)^2,\"\")","v":""},"Abweichungsquadrat Z8 / P1",{"$f":"IF(Gesamt!C20,(B9-F9)^2,\"\")","v":""},"Abweichungsquadrat Z1 / P2",{"$f":"IF(Gesamt!C20,(D9-F9)^2,\"\")","v":""},"Abweichungsquadrat Z8 / P1 / W1",{"$f":"IF(Gesamt!C20,(Gesamt!C20-Berechnungen!B9)^2,\"\")","v":""},"Abweichungsquadrat Z8 / P1 / W2",{"$f":"IF(Gesamt!D20,(Gesamt!D20-Berechnungen!B9)^2,\"\")","v":""},"Abweichungsquadrat Z8 / P2 / W1",{"$f":"IF(Gesamt!E20,(Gesamt!E20-Berechnungen!D9)^2,\"\")","v":""},"Abweichungsquadrat Z8 / P2 / W2",{"$f":"IF(Gesamt!F20,(Gesamt!F20-Berechnungen!D9)^2,\"\")","v":""},"Abweichungsquadrat_ges Z8 / P1 / W1",{"$f":"IF(Gesamt!C20,(Gesamt!C20-Berechnungen!$H$2)^2,\"\")","v":""},"Abweichungsquadrat_ges Z8 / P1 / W2",{"$f":"IF(Gesamt!D20,(Gesamt!D20-Berechnungen!$H$2)^2,\"\")","v":""},"Abweichungsquadrat_ges Z8 / P2 / W1",{"$f":"IF(Gesamt!E20,(Gesamt!E20-Berechnungen!$H$2)^2,\"\")","v":""},"Abweichungsquadrat_ges Z8 / P2 / W2",{"$f":"IF(Gesamt!F20,(Gesamt!F20-Berechnungen!$H$2)^2,\"\")","v":""}]
["Mittelwert Z9 / P1",{"$f":"IF(Gesamt!C21,AVERAGE(Gesamt!C21:D21),\"\")","v":""},"Mittelwert Z9 / P2",{"$f":"IF(Gesamt!E21,AVERAGE(Gesamt!E21:F21),\"\")","v":""},"Mittelwert Z9",{"$f":"IF(Gesamt!C21,AVERAGE(B10,D10),\"\")","v":""},null,null,"Abweichungsquadrat Z9",{"$f":"IF(Gesamt!C21,(Berechnungen!F10-Berechnungen!$H$2)^2,\"\")","v":""},"Abweichungsquadrat Z9 / P1",{"$f":"IF(Gesamt!C21,(B10-F10)^2,\"\")","v":""},"Abweichungsquadrat Z1 / P2",{"$f":"IF(Gesamt!C21,(D10-F10)^2,\"\")","v":""},"Abweichungsquadrat Z9 / P1 / W1",{"$f":"IF(Gesamt!C21,(Gesamt!C21-Berechnungen!B10)^2,\"\")","v":""},"Abweichungsquadrat Z9 / P1 / W2",{"$f":"IF(Gesamt!D21,(Gesamt!D21-Berechnungen!B10)^2,\"\")","v":""},"Abweichungsquadrat Z9 / P2 / W1",{"$f":"IF(Gesamt!E21,(Gesamt!E21-Berechnungen!D10)^2,\"\")","v":""},"Abweichungsquadrat Z9 / P2 / W2",{"$f":"IF(Gesamt!F21,(Gesamt!F21-Berechnungen!D10)^2,\"\")","v":""},"Abweichungsquadrat_ges Z9 / P1 / W1",{"$f":"IF(Gesamt!C21,(Gesamt!C21-Berechnungen!$H$2)^2,\"\")","v":""},"Abweichungsquadrat_ges Z9 / P1 / W2",{"$f":"IF(Gesamt!D21,(Gesamt!D21-Berechnungen!$H$2)^2,\"\")","v":""},"Abweichungsquadrat_ges Z9 / P2 / W1",{"$f":"IF(Gesamt!E21,(Gesamt!E21-Berechnungen!$H$2)^2,\"\")","v":""},"Abweichungsquadrat_ges Z9 / P2 / W2",{"$f":"IF(Gesamt!F21,(Gesamt!F21-Berechnungen!$H$2)^2,\"\")","v":""}]
["Mittelwert Z10 / P1",{"$f":"IF(Gesamt!C22,AVERAGE(Gesamt!C22:D22),\"\")","v":""},"Mittelwert Z10 / P2",{"$f":"IF(Gesamt!E22,AVERAGE(Gesamt!E22:F22),\"\")","v":""},"Mittelwert Z10",{"$f":"IF(Gesamt!C22,AVERAGE(B11,D11),\"\")","v":""},null,null,"Abweichungsquadrat Z10",{"$f":"IF(Gesamt!C22,(Berechnungen!F11-Berechnungen!$H$2)^2,\"\")","v":""},"Abweichungsquadrat Z10 / P1",{"$f":"IF(Gesamt!C22,(B11-F11)^2,\"\")","v":""},"Abweichungsquadrat Z1 / P2",{"$f":"IF(Gesamt!C22,(D11-F11)^2,\"\")","v":""},"Abweichungsquadrat Z10 / P1 / W1",{"$f":"IF(Gesamt!C22,(Gesamt!C22-Berechnungen!B11)^2,\"\")","v":""},"Abweichungsquadrat Z10 / P1 / W2",{"$f":"IF(Gesamt!D22,(Gesamt!D22-Berechnungen!B11)^2,\"\")","v":""},"Abweichungsquadrat Z10 / P2 / W1",{"$f":"IF(Gesamt!E22,(Gesamt!E22-Berechnungen!D11)^2,\"\")","v":""},"Abweichungsquadrat Z10 / P2 / W2",{"$f":"IF(Gesamt!F22,(Gesamt!F22-Berechnungen!D11)^2,\"\")","v":""},"Abweichungsquadrat_ges Z10 / P1 / W1",{"$f":"IF(Gesamt!C22,(Gesamt!C22-Berechnungen!$H$2)^2,\"\")","v":""},"Abweichungsquadrat_ges Z10 / P1 / W2",{"$f":"IF(Gesamt!D22,(Gesamt!D22-Berechnungen!$H$2)^2,\"\")","v":""},"Abweichungsquadrat_ges Z10 / P2 / W1",{"$f":"IF(Gesamt!E22,(Gesamt!E22-Berechnungen!$H$2)^2,\"\")","v":""},"Abweichungsquadrat_ges Z10 / P2 / W2",{"$f":"IF(Gesamt!F22,(Gesamt!F22-Berechnungen!$H$2)^2,\"\")","v":""}]
[]
["Anzahl Ziele a",{"$f":"COUNT(Gesamt!C13:C22)","v":0},{"$nulls":6},"SS(zwischen Zielen)",{"$f":"B14*B15*SUM(J2:J11)","v":0},null,null,"SS(zwischen Proben)",{"$f":"B15*SUM(L2:L11,N2:N11)","v":0},{"$nulls":6},"SS(innerhalb Proben)",{"$f":"SUM(P2:P11,R2:R11,T2:T11,V2:V11)","v":0},{"$nulls":6},"SS(gesamt)",{"$f":"SUM(X2:X11,Z2:Z11,AB2:AB11,AD2:AD11)","v":0}]
["Anzahl Proben je Ziel",2,{"$nulls":6},"MS(zwischen Zielen)",{"$f":"J13/(B13-1)","v":0},null,null,"MS(zwischen Proben)",{"$f":"N13/B13/(B14-1)","v":{"$error":"#DIV/0!"}},{"$nulls":6},"MS(innerhalb Proben)",{"$f":"V13/(B13*B14*(B15-1))","v":{"$error":"#DIV/0!"}}]
["Anzahl Werte je Probe",2]
[]
["Varianz(innerhalb Proben)",null,{"$f":"V14","v":{"$error":"#DIV/0!"}}]
["Varianz(zwischen Proben, innerhalb Ziele)",null,{"$f":"(N14-V14)/B15","v":{"$error":"#DIV/0!"}}]
["Varianz(zwischen Zielen)",null,{"$f":"(J14-N14)/(B15*B14)","v":{"$error":"#DIV/0!"}}]
["Gesamtvarianz",null,{"$f":"SUM(C17:C19)","v":{"$error":"#DIV/0!"}}]
["St.abw.(innerhalb Proben)",null,{"$f":"IF(C17>0,SQRT(C17),0)","v":{"$error":"#DIV/0!"}},{"$f":"C21/$H$2","v":{"$error":"#DIV/0!"}},"Analytik"]
["St.abw.(zwischen Proben, innerhalb Ziele)",null,{"$f":"IF(C18>0,SQRT(C18),0)","v":{"$error":"#DIV/0!"}},{"$f":"C22/$H$2","v":{"$error":"#DIV/0!"}},"Probenahme"]
["St.abw.(zwischen Zielen)",null,{"$f":"IF(C19>0,SQRT(C19),0)","v":{"$error":"#DIV/0!"}},{"$error":"#DIV/0!"},"zwischen den Zielen"]
["St.Abw. Messung",null,{"$f":"SQRT(SUMSQ(C21:C22))","v":{"$error":"#DIV/0!"}},{"$error":"#DIV/0!"},"Messung"]
["St.Abw. Gesamt",null,{"$f":"SQRT(C20)","v":{"$error":"#DIV/0!"}},{"$error":"#DIV/0!"},"Gesamt"]